fUSD/lending_fUSD_20240125
["ID","MTS","AMOUNT","RATE_DAILY","PERIOD"]
[312775239,1706206241928,-153.13,0.000542,7]
[312775240,1706206241938,-153.13,0.000542,7]
[312775241,1706206241948,-153.13,0.000542,7]
[312775242,1706206241958,-153.13,0.000542,7]
[312775243,1706206241969,-153.13,0.000542,7]
[312775244,1706206241978,-153.13,0.000542,7]
[312775245,1706206241988,-153.13,0.000542,7]
[312775246,1706206241997,-155.0,0.00054243,4]
[312775247,1706206242007,-494.48148194,0.00054243,4]
[312775248,1706206242016,-157.64331235,0.00054244,4]
[312775249,1706206242025,-150.50442,0.00054246,5]
[312775250,1706206242034,-442.0,0.00054616,30]
[312775251,1706206242044,-290.0,0.00054616,30]
[312775252,1706206242054,-2102.0,0.000547,117]
[312775253,1706206242064,-185.53787873,0.00054791,4]
[312775254,1706206242073,-189.54587012,0.00054791,4]
[312775255,1706206242220,-1615.17622381,0.00054791,4]
[312775256,1706206242229,-1766.13596665,0.00054791,4]
[312775257,1706206242239,-260.50924699,0.00054792,4]
[312775258,1706206242248,-11351.77715904,0.00054792,4]
[312775259,1706206242257,-355.96719696,0.00054792,4]
[312775260,1706206242267,-200.15618346,0.00054792,4]
[312775261,1706206242276,-155.31278064,0.00054792,4]
[312775262,1706206242286,-1828.09,0.00054794,5]
[312775263,1706206242297,-174.8843879,0.00054794,4]
[312775264,1706206242306,-1205.9494329,0.00054794,4]
[312775265,1706206242315,-664.06710244,0.00054794,90]
[312775266,1706206242324,-200.0,0.00054794,2]
[312775267,1706206242334,-2372.59232528,0.00054794,15]
[312775268,1706206242344,-163.73784171,0.00054794,2]
[312775269,1706206242355,-1583.24343112,0.00054794,15]
[312775270,1706206242366,-500.0,0.00054794,10]
[312775271,1706206242376,-192.12132144,0.00054794,4]
[312775272,1706206242386,-160.00184019,0.00054794,2]
[312775273,1706206242395,-33819.93627988,0.00054794,4]
[312775274,1706206242404,-500.0,0.00054794,120]
[312775275,1706206242414,-500.0,0.00054794,120]
[312775276,1706206242424,-500.0,0.00054794,120]
[312775277,1706206242435,-597.96,0.00054794,120]
[312775278,1706206242444,-500.0,0.00054794,120]
[312775279,1706206242454,-500.0,0.00054794,120]
[312775280,1706206242464,-500.0,0.00054794,120]
[312775281,1706206242474,-500.0,0.00054794,120]
[312775282,1706206242483,-500.0,0.00054794,120]
[312775283,1706206242493,-327.56134791,0.00054794,120]
[312775284,1706206242505,-500.0,0.00054794,120]
[312775285,1706206242514,-500.0,0.00054794,120]
[312775286,1706206242523,-500.0,0.00054794,120]
[312775287,1706206242533,-222.85745136,0.00054794,120]
[312775288,1706206242543,-500.0,0.00054794,120]
[312775289,1706206242552,-500.0,0.00054794,120]
[312775290,1706206242561,-500.0,0.00054794,120]
[312775291,1706206242571,-500.0,0.00054794,120]
[312775292,1706206242580,-500.0,0.00054794,120]
[312775293,1706206242589,-500.0,0.00054794,120]
[312775294,1706206242599,-500.0,0.00054794,120]
[312775295,1706206242609,-500.0,0.00054794,120]
[312775296,1706206242618,-500.0,0.00054794,120]
[312775297,1706206242627,-600.0,0.00054794,120]
[312775298,1706206242638,-500.0,0.00054794,120]
[312775299,1706206242647,-500.0,0.00054794,120]
[312775300,1706206242656,-500.0,0.00054794,120]
[312775301,1706206242666,-166.65,0.00054794,120]
[312775302,1706206242675,-500.0,0.00054794,120]
[312775303,1706206242685,-365.89359112,0.00054794,120]
[312775304,1706206242695,-500.0,0.00054794,120]
[312775305,1706206242706,-500.0,0.00054794,2]
[312775306,1706206242717,-500.0,0.00054794,120]
[312775307,1706206242727,-500.0,0.00054794,7]
[312775308,1706206242737,-500.0,0.00054794,120]
[312775309,1706206242748,-500.0,0.00054794,120]
[312775310,1706206242759,-500.0,0.00054794,120]
[312775311,1706206242769,-500.0,0.00054794,120]
[312775312,1706206242778,-500.0,0.00054794,120]
[312775313,1706206242788,-500.0,0.00054794,120]
[312775314,1706206242798,-500.0,0.00054794,120]
[312775315,1706206242807,-500.0,0.00054794,60]
[312775317,1706206242817,-500.0,0.00054794,120]
[312775319,1706206242827,-414.79202035,0.00054794,120]
[312775321,1706206242836,-587.23919886,0.00054794,120]
[312775322,1706206242846,-500.0,0.00054794,120]
[312775323,1706206242855,-979.28,0.00054794,120]
[312775324,1706206242865,-567.09244383,0.00054794,2]
[312775325,1706206242876,-500.0,0.00054794,20]
[312775326,1706206242886,-523.54,0.00054794,120]
[312775327,1706206242895,-500.0,0.00054794,120]
[312775328,1706206242904,-500.0,0.00054794,120]
[312775329,1706206242914,-150.0,0.00054794,120]
[312775330,1706206242924,-761.57,0.00054794,120]
[312775331,1706206242933,-500.0,0.00054794,120]
[312775332,1706206242943,-500.0,0.00054794,120]
[312775333,1706206242954,-500.0,0.00054794,120]
[312775334,1706206242965,-500.0,0.00054794,2]
[312775335,1706206242974,-504.07952387,0.00054794,120]
[312775336,1706206242983,-500.0,0.00054794,120]
[312775337,1706206242992,-500.0,0.00054794,120]
[312775338,1706206243002,-500.0,0.00054794,120]
[312775339,1706206243011,-500.0,0.00054794,120]
[312775340,1706206243022,-500.0,0.00054794,120]
[312775341,1706206243034,-500.0,0.00054794,120]
[312775342,1706206243044,-500.0,0.00054794,2]
[312775343,1706206243054,-500.0,0.00054794,120]
[312775344,1706206243064,-500.0,0.00054794,120]
[312775345,1706206243074,-500.0,0.00054794,120]
[312775346,1706206243085,-500.0,0.00054794,120]
[312775347,1706206243096,-500.0,0.00054794,120]
[312775348,1706206243107,-500.0,0.00054794,120]
[312775349,1706206243116,-500.0,0.00054794,120]
[312775350,1706206243126,-263.55162092,0.00054794,120]
[312775351,1706206243137,-527.20673216,0.00054794,120]
[312775352,1706206243147,-500.0,0.00054794,120]
[312775353,1706206243158,-500.0,0.00054794,120]
[312775354,1706206243168,-500.0,0.00054794,120]
[312775355,1706206243179,-500.0,0.00054794,120]
[312775356,1706206243188,-500.0,0.00054794,120]
[312775357,1706206243198,-500.0,0.00054794,120]
[312775358,1706206243207,-500.0,0.00054794,120]
[312775359,1706206243216,-424.143157,0.00054794,120]
[312775360,1706206243225,-500.0,0.00054794,120]
[312775361,1706206243236,-509.94,0.00054794,120]
[312775362,1706206243245,-504.18673739,0.00054794,120]
[312775363,1706206243255,-500.0,0.00054794,120]
[312775364,1706206243265,-500.0,0.00054794,120]
[312775365,1706206243276,-500.0,0.00054794,120]
[312775366,1706206243285,-512.18,0.00054794,120]
[312775367,1706206243295,-554.99,0.00054794,2]
[312775368,1706206243304,-500.0,0.00054794,120]
[312775369,1706206243313,-500.0,0.00054794,120]
[312775370,1706206243323,-500.0,0.00054794,120]
[312775371,1706206243333,-500.0,0.00054794,120]
[312775372,1706206243342,-500.0,0.00054794,120]
[312775373,1706206243352,-500.0,0.00054794,120]
[312775374,1706206243361,-500.0,0.00054794,120]
[312775375,1706206243370,-379.92,0.00054794,120]
[312775376,1706206243379,-548.87040574,0.00054794,120]
[312775377,1706206243389,-500.0,0.00054794,120]
[312775378,1706206243402,-500.0,0.00054794,120]
[312775379,1706206243415,-500.0,0.00054794,120]
[312775380,1706206243424,-293.59259974,0.00054794,120]
[312775381,1706206243476,-206.40740026,0.00054794,120]
[312775382,1706206243486,-500.0,0.00054794,120]
[312775383,1706206243495,-500.0,0.00054794,120]
[312775384,1706206243504,-500.0,0.00054794,120]
[312775385,1706206243513,-831.36,0.00054794,5]
[312775386,1706206243522,-500.0,0.00054794,120]
[312775387,1706206243531,-500.0,0.00054794,120]
[312775388,1706206243540,-500.0,0.00054794,120]
[312775389,1706206243549,-500.0,0.00054794,120]
[312775390,1706206243558,-466.39732046,0.00054794,120]
[312775391,1706206243566,-633.91,0.00054794,120]
[312775392,1706206243575,-500.0,0.00054794,120]
[312775393,1706206243584,-500.0,0.00054794,120]
[312775394,1706206243593,-500.0,0.00054794,120]
[312775395,1706206243603,-375.65187501,0.00054794,120]
[312775396,1706206243612,-1133.75,0.00054794,5]
[312775397,1706206243621,-500.0,0.00054794,7]
[312775398,1706206243630,-1072.42,0.00054794,120]
[312775399,1706206243640,-500.0,0.00054794,120]
[312775400,1706206243653,-500.0,0.00054794,120]
[312775401,1706206243670,-500.0,0.00054794,120]
[312775402,1706206243680,-510.33,0.00054794,120]
[312775403,1706206243689,-500.0,0.00054794,120]
[312775404,1706206243699,-500.0,0.00054794,120]
[312775405,1706206243709,-500.0,0.00054794,120]
[312775406,1706206243719,-500.0,0.00054794,120]
[312775407,1706206243728,-185.51,0.00054794,120]
[312775408,1706206243737,-500.0,0.00054794,120]
[312775409,1706206243746,-500.0,0.00054794,120]
[312775410,1706206243755,-500.0,0.00054794,120]
[312775411,1706206243765,-500.0,0.00054794,120]
[312775412,1706206243774,-500.0,0.00054794,120]
[312775413,1706206243784,-587.52916543,0.00054794,120]
[312775414,1706206243793,-500.0,0.00054794,120]
[312775415,1706206243803,-500.0,0.00054794,120]
[312775417,1706206243813,-500.0,0.00054794,120]
[312775419,1706206243822,-500.0,0.00054794,120]
[312775421,1706206243831,-162.22703681,0.000548,30]
[312775422,1706206243841,-3000.0,0.000548,30]
[312775423,1706206243851,-250.0,0.000548,30]
[312775424,1706206243860,-4000.0,0.000548,120]
[312775425,1706206243870,-315.96771899,0.00055,4]
[312775426,1706206243883,-1463.43,0.00055,14]
[312775427,1706206243892,-300.0,0.00055,120]
[312775428,1706206243901,-200.0,0.00055,120]
[312775429,1706206243913,-442.0,0.00055174,30]
[312775430,1706206243922,-290.0,0.00055174,30]
[312775431,1706206243931,-300.76362,0.00055331,10]
[312775432,1706206243941,-500.0,0.00055342,120]
[312775433,1706206243951,-500.0,0.00055342,120]
[312775434,1706206243961,-500.0,0.00055342,120]
[312775435,1706206243970,-243.48126376,0.00055342,120]
[312775436,1706206244076,-354.47873624,0.00055342,120]
[312775437,1706206244086,-38.1894744,0.00055342,120]
[312775438,1706206244097,-461.8105256,0.00055342,120]
[312775439,1706206244106,-500.0,0.00055342,120]
[312775440,1706206244117,-500.0,0.00055342,120]
[312775441,1706206244127,-500.0,0.00055342,120]
[312775442,1706206244136,-25.65947441,0.00055342,120]
[312775443,1706206244148,-474.34052559,0.00055342,120]
[312775444,1706206244157,-193.42419478,0.00055342,120]
[312775445,1706206244169,-306.57580522,0.00055342,120]
[312775446,1706206244178,-20.24639734,0.00055342,120]
[312775447,1706206244190,-479.75360266,0.00055342,120]
[312775448,1706206244199,-500.0,0.00055342,120]
[312775449,1706206244209,-500.0,0.00055342,120]
[312775450,1706206244219,-500.0,0.00055342,120]
[312775451,1706206244228,-424.5925521,0.00055342,120]
[312775452,1706206244237,-500.0,0.00055342,120]
[312775453,1706206244247,-500.0,0.00055342,120]
[312775454,1706206244257,-198.92,0.00055342,120]
[312775455,1706206244267,-500.0,0.00055342,120]
[312775456,1706206244277,-500.0,0.00055342,120]
[312775457,1706206244286,-500.0,0.00055342,120]
[312775458,1706206244295,-600.0,0.00055342,120]
[312775459,1706206244305,-500.0,0.00055342,120]
[312775460,1706206244315,-311.75563143,0.00055342,120]
[312775461,1706206244324,-500.0,0.00055342,120]
[312775462,1706206244333,-500.0,0.00055342,2]
[312775463,1706206244342,-500.0,0.00055342,120]
[312775464,1706206244353,-500.0,0.00055342,7]
[312775465,1706206244362,-500.0,0.00055342,120]
[312775466,1706206244371,-500.0,0.00055342,120]
[312775468,1706206244380,-500.0,0.00055342,120]
[312775470,1706206244390,-500.0,0.00055342,120]
[312775472,1706206244399,-545.37746305,0.00055342,120]
[312775474,1706206244409,-500.0,0.00055342,120]
[312775476,1706206244418,-500.0,0.00055342,120]
[312775478,1706206244427,-171.01967784,0.00055342,60]
[312775480,1706206244436,-500.0,0.00055342,120]
[312775482,1706206244446,-500.0,0.00055342,120]
[312775484,1706206244455,-941.3746226,0.00055342,120]
[312775495,1706206244734,-172.0,0.00049,90]
[312775496,1706206244744,-172.0,0.00051781,120]
[312775497,1706206244753,-37.9053774,0.00055342,120]
[312775498,1706206244763,-43.3493278,0.00055342,20]
[312775499,1706206244775,-456.6506722,0.00055342,20]
[312775500,1706206244784,-523.54,0.00055342,120]
[312775501,1706206244794,-500.0,0.00055342,120]
[312775502,1706206244805,-75.17064621,0.00055342,120]
[312775503,1706206244817,-424.82935379,0.00055342,120]
[312775504,1706206244826,-150.0,0.00055342,120]
[312775505,1706206244835,-635.55174366,0.00055342,120]
[312775506,1706206244847,-126.01825634,0.00055342,120]
[312775507,1706206244858,-500.0,0.00055342,120]
[312775508,1706206244868,-500.0,0.00055342,120]
[312775509,1706206244881,-500.0,0.00055342,120]
[312775510,1706206244890,-226.94164075,0.00055342,2]
[312775511,1706206244901,-273.05835925,0.00055342,2]
[312775512,1706206244911,-268.51,0.00055342,120]
[312775513,1706206244922,-500.0,0.00055342,120]
[312775514,1706206244933,-500.0,0.00055342,120]
[312775515,1706206244944,-500.0,0.00055342,120]
[312775516,1706206244956,-97.07906347,0.00055342,120]
[312775517,1706206245026,-794.0,0.00034848,5]
[312775518,1706206245036,-402.92093653,0.00055342,120]
[312775519,1706206245045,-500.0,0.00055342,2]
[312775520,1706206245054,-500.0,0.00055342,120]
[312775521,1706206245063,-500.0,0.00055342,120]
[312775522,1706206245072,-500.0,0.00055342,120]
[312775523,1706206245082,-79.95519406,0.00055342,120]
[312775524,1706206245093,-420.04480594,0.00055342,120]
[312775525,1706206245103,-34.69212307,0.00055342,120]
[312775526,1706206245114,-443.931316,0.00055342,120]
[312775527,1706206245126,-21.37656093,0.00055342,120]
[312775528,1706206245136,-500.0,0.00055342,120]
[312775529,1706206245145,-500.0,0.00055342,120]
[312775530,1706206245154,-500.0,0.00055342,120]
[312775531,1706206245163,-203.21440991,0.00055342,120]
[312775554,1706206246165,-894.78267236,0.000482,30]
[312775556,1706206246177,-105.21732764,0.000482,30]
[312775558,1706206246187,-339.26828891,0.000499,46]
[312775560,1706206246196,-296.78559009,0.00055342,120]
[312775562,1706206246206,-232.97827164,0.00055342,120]
[312775564,1706206246218,-267.02172836,0.00055342,120]
[312775566,1706206246227,-500.0,0.00055342,120]
[312775569,1706206246238,-500.0,0.00055342,120]
[312775570,1706206246247,-500.0,0.00055342,120]
[312775572,1706206246257,-316.64,0.00055342,120]
[312775575,1706206246267,-554.99,0.00055342,2]
[312775577,1706206246276,-500.0,0.00055342,120]
[312775579,1706206246286,-71.06827164,0.00055342,120]
[312775581,1706206246298,-428.93172836,0.00055342,120]
[312775583,1706206246307,-500.0,0.00055342,120]
[312775585,1706206246316,-402.86221964,0.00055342,120]
[312775587,1706206246328,-97.13778036,0.00055342,120]
[312775589,1706206246337,-500.0,0.00055342,120]
[312775591,1706206246347,-575.31963038,0.00055342,120]
[312775593,1706206246357,-500.0,0.00055342,120]
[312775595,1706206246366,-500.0,0.00055342,120]
[312775597,1706206246376,-500.0,0.00055342,120]
[312775599,1706206246386,-97.61792699,0.00055342,120]
[312775602,1706206246399,-402.38207301,0.00055342,120]
[312775604,1706206246408,-161.60891747,0.00055342,120]
[312775606,1706206246421,-27.54108253,0.00055342,120]
[312775608,1706206246430,-500.0,0.00055342,120]
[312775610,1706206246440,-500.0,0.00055342,120]
[312775612,1706206246450,-179.30610024,0.00055342,120]
[312775615,1706206246463,-313.49389976,0.00055342,120]
[312775617,1706206246473,-478.10634608,0.00055342,5]
[312775639,1706206246643,-353.25365392,0.00055342,5]
[312775642,1706206246653,-500.0,0.00055342,120]
[312775644,1706206246663,-500.0,0.00055342,120]
[312775646,1706206246672,-500.0,0.00055342,120]
[312775648,1706206246682,-500.0,0.00055342,120]
[312775650,1706206246692,-633.91,0.00055342,120]
[312775652,1706206246702,-500.0,0.00055342,120]
[312775654,1706206246712,-500.0,0.00055342,120]
[312775656,1706206246721,-500.0,0.00055342,120]
[312775657,1706206246730,-1133.75,0.00055342,5]
[312775659,1706206246740,-500.0,0.00055342,7]
[312775661,1706206246750,-1072.42,0.00055342,120]
[312775663,1706206246761,-500.0,0.00055342,120]
[312775665,1706206246771,-500.0,0.00055342,120]
[312775667,1706206246781,-500.0,0.00055342,120]
[312775669,1706206246792,-510.33,0.00055342,120]
[312775671,1706206246802,-500.0,0.00055342,120]
[312775673,1706206246811,-500.0,0.00055342,120]
[312775675,1706206246821,-500.0,0.00055342,120]
[312775677,1706206246830,-500.0,0.00055342,120]
[312775679,1706206246840,-500.0,0.00055342,120]
[312775681,1706206246850,-500.0,0.00055342,120]
[312775683,1706206246861,-500.0,0.00055342,120]
[312775685,1706206246872,-500.0,0.00055342,120]
[312775687,1706206246884,-500.0,0.00055342,120]
[312775689,1706206246895,-500.0,0.00055342,120]
[312775690,1706206246904,-500.0,0.00055342,120]
[312775691,1706206246914,-500.0,0.00055342,120]
[312775692,1706206246924,-567.60421893,0.00055342,120]
[312775694,1706206246934,-214.46633782,0.00055368,120]
[312775696,1706206246945,-151.0,0.00055521,2]
[312775698,1706206246957,-442.0,0.00055731,30]
[312775700,1706206246966,-290.0,0.00055731,30]
[312775702,1706206246977,-1985.91906819,0.00055731,30]
[312775704,1706206246987,-1589.92484523,0.00055731,60]
[312775706,1706206246998,-157.09567325,0.00055767,120]
[312775708,1706206247008,-157.09567325,0.00055826,120]
[312775710,1706206247017,-500.0,0.0005589,120]
[312775712,1706206247027,-500.0,0.0005589,120]
[312775714,1706206247037,-500.0,0.0005589,120]
[312775716,1706206247046,-597.96,0.0005589,120]
[312775718,1706206247057,-500.0,0.0005589,120]
[312775720,1706206247067,-500.0,0.0005589,120]
[312775722,1706206247079,-500.0,0.0005589,120]
[312775724,1706206247089,-500.0,0.0005589,120]
[312775726,1706206247099,-500.0,0.0005589,120]
[312775728,1706206247108,-500.0,0.0005589,120]
[312775729,1706206247118,-500.0,0.0005589,120]
[312775731,1706206247128,-299.71368048,0.0005589,120]
[312775733,1706206247138,-500.0,0.0005589,120]
[312775735,1706206247148,-500.0,0.0005589,120]
[312775737,1706206247158,-500.0,0.0005589,120]
[312775739,1706206247169,-500.0,0.0005589,120]
[312775742,1706206247179,-600.0,0.0005589,120]
[312775744,1706206247189,-500.0,0.0005589,120]
[312775746,1706206247199,-500.0,0.0005589,120]
[312775748,1706206247209,-500.0,0.0005589,2]
[312775750,1706206247219,-500.0,0.0005589,120]
[312775751,1706206247229,-500.0,0.0005589,7]
[312775753,1706206247239,-500.0,0.0005589,120]
[312775755,1706206247249,-500.0,0.0005589,120]
[312775757,1706206247258,-500.0,0.0005589,120]
[312775759,1706206247268,-500.0,0.0005589,120]
[312775760,1706206247278,-500.0,0.0005589,120]
[312775761,1706206247287,-580.86,0.0005589,120]
[312775762,1706206247297,-235.03370153,0.0005589,120]
[312775763,1706206247307,-500.0,0.0005589,120]
[312775764,1706206247317,-979.28,0.0005589,120]
[312775765,1706206247328,-500.0,0.0005589,20]
[312775766,1706206247337,-523.54,0.0005589,120]
[312775767,1706206247347,-500.0,0.0005589,120]
[312775768,1706206247358,-500.0,0.0005589,120]
[312775769,1706206247369,-150.0,0.0005589,120]
[312775770,1706206247379,-761.57,0.0005589,120]
[312775771,1706206247391,-500.0,0.0005589,120]
[312775772,1706206247402,-500.0,0.0005589,120]
[312775773,1706206247412,-197.36,0.0005589,120]
[312775774,1706206247422,-500.0,0.0005589,2]
[312775775,1706206247434,-500.0,0.0005589,120]
[312775776,1706206247448,-500.0,0.0005589,120]
[312775777,1706206247461,-500.0,0.0005589,120]
[312775778,1706206247473,-500.0,0.0005589,120]
[312775779,1706206247486,-500.0,0.0005589,2]
[312775780,1706206247497,-500.0,0.0005589,120]
[312775781,1706206247509,-500.0,0.0005589,120]
[312775782,1706206247522,-500.0,0.0005589,120]
[312775783,1706206247532,-500.0,0.0005589,120]
[312775784,1706206247542,-500.0,0.0005589,120]
[312775785,1706206247552,-500.0,0.0005589,120]
[312775786,1706206247564,-500.0,0.0005589,120]
[312775787,1706206247575,-500.0,0.0005589,120]
[312775788,1706206247587,-587.33656276,0.0005589,120]
[312775789,1706206247598,-500.0,0.0005589,120]
[312775790,1706206247609,-500.0,0.0005589,120]
[312775791,1706206247621,-500.0,0.0005589,120]
[312775792,1706206247632,-287.49070642,0.0005589,120]
[312775793,1706206247645,-554.99,0.0005589,2]
[312775794,1706206247656,-500.0,0.0005589,120]
[312775795,1706206247667,-168.41,0.0005589,120]
[312775796,1706206247678,-500.0,0.0005589,120]
[312775797,1706206247689,-477.05953202,0.0005589,120]
[312775798,1706206247699,-500.0,0.0005589,120]
[312775799,1706206247709,-500.0,0.0005589,120]
[312775800,1706206247720,-500.0,0.0005589,120]
[312775801,1706206247731,-500.0,0.0005589,120]
[312775802,1706206247742,-500.0,0.0005589,120]
[312775803,1706206247753,-500.0,0.0005589,120]
[312775804,1706206247764,-500.0,0.0005589,120]
[312775805,1706206247777,-831.36,0.0005589,5]
[312775806,1706206247788,-338.72,0.0005589,120]
[312775807,1706206247799,-500.0,0.0005589,120]
[312775808,1706206247810,-500.0,0.0005589,120]
[312775809,1706206247822,-500.0,0.0005589,120]
[312775810,1706206247834,-363.71630654,0.0005589,120]
[312775811,1706206247850,-270.19369346,0.0005589,120]
[312775812,1706206247861,-229.80630654,0.0005589,120]
[312775813,1706206247891,-0.01938323,0.0005589,120]
[312775816,1706206561511,697.45,0.00021621,2]
[312775817,1706207259716,190.47,0.00021621,2]
[312775818,1706207259741,150.0,0.00021621,2]
[312775819,1706207259767,150.0,0.00021621,2]
[312775820,1706207259793,150.0,0.00021621,2]
[312775821,1706207259818,150.0,0.00021621,2]
[312775822,1706207259842,121.26855083,0.00021621,2]
[312775825,1706207432260,-247.42374992,0.00022416,2]
[312775826,1706207432271,-216.48921933,0.00022427,2]
[312775827,1706207432281,-216.48921933,0.00022427,2]
[312775828,1706207432291,-216.48921933,0.00022428,2]
[312775829,1706207432301,-157.64331235,0.00022669,2]
[312775830,1706207432312,-155.0,0.00022669,2]
[312775831,1706207432322,-174.92748785,0.00022798,2]
[312775832,1706207432332,-155.0,0.000228,2]
[312775833,1706207432343,-150.0,0.00022897,2]
[312775834,1706207432353,-355.96719696,0.00022898,2]
[312775835,1706207432364,-155.31278064,0.00022898,2]
[312775836,1706207432373,-200.15618346,0.00022898,2]
[312775837,1706207432383,-260.50924699,0.00022898,2]
[312775838,1706207432392,-185.53787873,0.00022898,2]
[312775839,1706207432402,-189.54587012,0.00022898,2]
[312775840,1706207432411,-1615.17622381,0.00022898,2]
[312775841,1706207432421,-1766.13596665,0.00022898,2]
[312775842,1706207432430,-11351.77715904,0.00022899,2]
[312775843,1706207432440,-22128.41928549,0.000229,2]
[312775844,1706207432464,-520.93349314,0.000229,2]
[312775845,1706207432493,-3990.6662,0.000229,2]
[312775867,1706207438210,-24304.87539054,0.000229,2]
[312775869,1706207438221,-450.0,0.00025,3]
[312775871,1706207438231,-1635.74,0.00025,2]
[312775874,1706207438243,-500.0,0.00026,2]
[312775877,1706207438253,-500.0,0.00027,3]
[312775879,1706207438263,-499.99,0.00028,2]
[312775881,1706207438272,-3359.7,0.00028,2]
[312775883,1706207438282,-183.53802334,0.00028,2]
[312775885,1706207438291,-537.29198684,0.00029,3]
[312775888,1706207438303,-12.70801316,0.00029,3]
[312775890,1706207438314,-155.0,0.0003,2]
[312775892,1706207438323,-1000.0,0.00034,4]
[312775894,1706207438333,-1300.0,0.00035,30]
[312775896,1706207438342,-1782.01,0.00036401,5]
[312775898,1706207438352,-153.67,0.000377,3]
[312775900,1706207438362,-153.67,0.000377,3]
[312775901,1706207438373,-153.67,0.000377,3]
[312775903,1706207438382,-153.67,0.000377,3]
[312775905,1706207438392,-153.67,0.000377,3]
[312775907,1706207438402,-153.67,0.000377,3]
[312775909,1706207438411,-153.67,0.000377,3]
[312775910,1706207438421,-153.67,0.000377,3]
[312775911,1706207438430,-153.67,0.000377,3]
[312775913,1706207438439,-153.67,0.000377,3]
[312775915,1706207438449,-153.67,0.000377,3]
[312775917,1706207438458,-153.67,0.000377,3]
[312775919,1706207438467,-153.67,0.000377,3]
[312775921,1706207438477,-701.12691554,0.00039,10]
[312775923,1706207438488,-622.51303378,0.00039253,2]
[312775925,1706207438497,-156.96046144,0.00039253,4]
[312775927,1706207438507,-205.03,0.00040372,2]
[312775929,1706207438515,-1000.0,0.00040389,2]
[312775931,1706207438525,-178.01814834,0.00040613,8]
[312775933,1706207438535,-247.5,0.00040663,8]
[312775934,1706207438544,-837.41383875,0.00040739,8]
[312775936,1706207438554,-825.63237987,0.00040822,8]
[312775938,1706207438563,-286.66819879,0.00040874,8]
[312775940,1706207438573,-188.85095582,0.00040885,8]
[312775941,1706207438582,-1005.92,0.00040885,2]
[312775942,1706207438592,-2257.42900767,0.00040889,4]
[312775943,1706207438601,-566.52670879,0.00040889,4]
[312775944,1706207438611,-376.42939862,0.00040889,4]
[312775946,1706207438622,-2079.5244274,0.00040889,4]
[312775948,1706207438631,-502.11703257,0.00040889,4]
[312775950,1706207438640,-540.39722893,0.0004089,4]
[312775952,1706207438652,-1296.77525605,0.0004089,4]
[312775954,1706207438661,-405.55993497,0.00040891,8]
[312775956,1706207438670,-295.12480897,0.00040891,8]
[312775958,1706207438682,-15110.91208199,0.00040891,8]
[312775960,1706207438692,-9077.913,0.00040891,30]
[312775962,1706207438702,-161.56,0.00040922,15]
[312775964,1706207438712,-154.35,0.0004098,2]
[312775966,1706207438721,-250.0,0.00041408,2]
[312775968,1706207438731,-205.03,0.00041866,2]
[312775970,1706207438740,-394.81620687,0.00042,120]
[312775972,1706207438749,-153.67,0.000432,4]